bitfinex/quotes_ETHUSD_20250602
["timestamp","ask_amount","ask_price","bid_price","bid_amount"]
[1748836953878,0.7657,2499.7,2499.3,2.40062616]
[1748836954077,0.7657,2499.7,2499.3,2.40067218]
[1748836954506,0.7657,2499.7,2499.4,2.40055909]
[1748836955209,0.7657,2499.7,2499.3,2.40064454]
[1748836956114,0.7657,2499.7,2499.4,2.40056503]
[1748836956615,0.7657,2499.7,2499.3,0.88005774]
[1748836956786,3.1660442,2499.7,2499.2,2.98253358]
[1748836956986,4.17334486,2499.4,2498.7,4.75]
[1748836957216,0.8054,2499.2,2498.7,2.4011608]
[1748836957577,0.8054,2499.2,2498.5,0.8048]
[1748836957779,0.8054,2499.1,2498.6,2.40129198]
[1748836957980,0.8054,2499.1,2498.6,2.40132362]
[1748836959222,3.20630746,2499.1,2498.5,2.40137764]
[1748836959421,3.20626706,2499.1,2498.6,2.40127645]
[1748836959585,0.8054,2499.1,2498.6,2.40127645]
[1748836959781,0.8054,2499.1,2498.5,4.05503081]
[1748836959987,0.8054,2499.1,2498.7,2.4012092]
[1748836961143,0.8054,2499.1,2498.6,2.40131186]
[1748836962035,0.8054,2499.1,2498.5,2.40139865]
[1748836962219,3.20630814,2499.1,2498.6,2.40133548]
[1748836962531,3.20630814,2499.1,2498.6,2.40131876]
[1748836962834,0.8054,2499.1,2498.7,2.40124476]
[1748836963232,0.8054,2499.1,2498.9,2.40100356]
[1748836963392,0.8054,2499.1,2498.8,2.40108848]
[1748836963597,0.8054,2499.1,2498.9,2.40101563]
[1748836964393,0.8054,2499.1,2498.8,2.40113454]
[1748836964593,0.8054,2499.1,2498.8,3.28785278]
[1748836964846,0.8054,2499.1,2498.8,0.88671824]
[1748836965412,0.8054,2499.1,2498.8,3.28785941]
[1748836966026,0.8054,2499.1,2498.8,0.88671824]
[1748836967370,0.47830643,2499.6,2498.8,0.88671824]
[1748836967371,0.7695,2499.5,2499.1,2.40084772]
[1748836967500,0.7695,2499.5,2499.2,0.24008477]
[1748836968034,2.40059486,2499.4,2499.2,0.24008477]
[1748836968197,2.40059486,2499.4,2498.9,2.40103726]
[1748836968400,3.17002264,2499.5,2499.0,2.40095938]
[1748836968798,0.7695,2499.5,2498.9,2.40098473]
[1748836969140,3.17002403,2499.5,2498.9,2.40098473]
[1748836969443,2.40059395,2499.4,2498.9,2.40098473]
[1748836969649,2.40059395,2499.4,2499.0,0.61056478]
[1748836969939,0.7695,2499.5,2498.8,6.10577423]
[1748836969940,0.8208,2499.2,2498.8,3.7046631]
[1748836970145,1.20362582,2499.5,2499.0,2.40087292]
[1748836970340,0.8208,2499.5,2499.0,2.40087292]
[1748836970528,3.22128549,2499.5,2499.0,2.40087292]
[1748836970712,3.22128804,2499.5,2498.8,6.10577198]
[1748836970927,2.78348993,2499.4,2498.9,3.01161798]
[1748836971132,3.22131731,2499.5,2498.9,3.01161798]
[1748836971630,0.38283463,2499.4,2498.9,3.01161798]
[1748836971960,0.8208,2499.5,2499.0,5.21887826]
[1748836972134,0.8208,2499.5,2499.1,2.40086431]
[1748836972456,0.8208,2499.5,2499.2,0.52188092]
[1748836972831,0.8208,2499.5,2499.2,2.92264718]
[1748836973031,0.8208,2499.5,2499.2,0.52188092]
[1748836975322,0.8208,2499.5,2499.1,2.40082442]
[1748836975722,3.22129978,2499.5,2499.0,5.21886641]
[1748836976340,0.8208,2499.5,2499.0,5.21886641]
[1748836977028,0.8208,2499.5,2499.1,2.40085158]
[1748836977225,0.8208,2499.5,2499.1,3.30620346]
[1748836978353,0.8208,2499.5,2499.1,3.30621507]
[1748836978664,0.8208,2499.5,2499.1,0.90535188]
[1748836978866,2.4007249,2499.3,2498.7,11.64044486]
[1748836979171,2.40060056,2499.4,2498.8,2.40109985]
[1748836979375,2.40060056,2499.4,2498.9,2.40105144]
[1748836981458,0.8208,2499.5,2499.0,2.40090538]
[1748836981675,0.8208,2499.5,2499.2,2.40073407]
[1748836982435,0.8208,2499.5,2499.2,3.16269564]
[1748836982761,6.49530545,2499.7,2499.2,0.76196157]
[1748836982762,3.16839339,2499.7,2499.2,0.76196157]
[1748836982960,0.38299708,2499.6,2499.1,6.04716533]
[1748836983139,3.16839339,2499.7,2499.2,2.40075066]
[1748836983340,0.38299586,2499.6,2499.2,2.40075066]
[1748836983521,3.16839339,2499.7,2499.2,2.40075066]
[1748836983731,0.38300749,2499.6,2499.1,6.04717304]
[1748836983961,3.16839339,2499.7,2499.1,6.89198379]
[1748836984169,0.38302331,2499.6,2499.2,2.40074904]
[1748836984338,0.7681,2499.7,2499.2,2.40074904]
[1748836984548,0.38303162,2499.6,2499.2,2.40074904]
[1748836984744,3.16839231,2499.7,2499.2,2.40074904]
[1748836984934,0.38305417,2499.6,2499.2,2.40074904]
[1748836985134,3.16839231,2499.7,2499.2,3.33003241]
[1748836985361,2.78347602,2499.6,2499.2,0.92928337]
[1748836985666,2.40041297,2499.6,2499.2,0.92928337]
[1748836986567,0.7681,2499.7,2499.2,0.92928337]
[1748836986780,2.40048154,2499.5,2499.2,0.92928337]
[1748836987071,0.7681,2499.7,2498.9,2.81794486]
[1748836987315,2.40053649,2499.5,2499.0,2.40094376]
[1748836987456,0.7961,2499.4,2498.8,7.15109401]
[1748836987658,0.7961,2499.4,2498.8,9.96903887]
[1748836987869,0.7961,2499.4,2498.9,1.79690389]
[1748836988069,3.19667629,2499.4,2498.9,4.19789925]
[1748836988600,0.7961,2499.4,2498.9,1.79690389]
[1748836988785,0.7961,2499.4,2499.1,2.40085769]
[1748836989484,0.7961,2499.4,2498.9,4.19791241]
[1748836989686,0.7961,2499.4,2499.0,2.40090637]
[1748836989991,0.7961,2499.4,2499.1,2.40086065]
[1748836990788,0.7961,2499.4,2499.0,6.63555391]
[1748836991024,0.7961,2499.4,2499.1,2.40085625]
[1748836992500,0.7961,2499.4,2499.0,4.23464446]
[1748836992501,0.7961,2499.4,2499.0,6.63556612]
[1748836992791,0.7961,2499.4,2499.0,2.81794486]
[1748836992998,0.7961,2499.4,2499.0,5.21889657]
[1748836993358,0.7961,2499.4,2499.1,2.40085744]
[1748836993906,0.7961,2499.4,2499.0,2.40095183]
[1748836994257,0.7961,2499.4,2498.9,4.19791788]
[1748836994455,3.19667651,2499.4,2498.9,4.19791788]
[1748836995104,0.7961,2499.4,2498.9,4.19791788]
[1748836995408,2.40101634,2499.0,2498.7,4.75]
[1748836995707,3.19916478,2498.9,2498.3,8.0]
[1748836996072,3.19916478,2498.9,2498.4,2.40152807]
[1748836996291,3.19916478,2498.9,2498.5,1.04015281]
[1748836996292,0.7981,2498.9,2498.5,1.04015281]
[1748836996487,0.7981,2498.9,2498.5,3.44154138]
[1748836997799,2.40120838,2498.8,2498.3,2.40160552]
[1748836998110,3.1991854,2498.9,2498.4,2.40152209]
[1748836998269,0.7981,2498.9,2498.4,2.40144591]
[1748836998467,0.7981,2498.9,2498.4,2.40149871]
[1748836999315,3.19915794,2498.9,2498.4,2.40149871]
[1748836999685,0.7981,2498.9,2498.4,2.40145834]
[1748836999899,0.7981,2498.9,2498.5,2.40138335]
[1748837000078,0.7981,2498.9,2498.4,3.16361458]
[1748837000481,0.7981,2498.9,2498.4,0.76210313]
[1748837000684,2.40115542,2498.8,2498.2,5.21962654]
[1748837000893,3.19919414,2498.9,2498.3,2.40162965]
[1748837001209,2.4011637,2498.8,2498.3,2.40162965]
[1748837002299,0.7981,2498.9,2498.2,2.81794486]
[1748837002300,3.19920113,2498.9,2498.4,2.40153444]
[1748837002884,3.19851283,2498.7,2498.0,3.23329194]
[1748837003119,3.19851283,2498.7,2498.1,2.81794486]
[1748837003284,0.7972,2498.7,2498.3,2.40158141]
[1748837003484,0.7972,2498.7,2498.3,2.40161028]
[1748837003683,0.7972,2498.7,2498.3,3.16373762]
[1748837004627,0.7972,2498.7,2498.3,0.76212734]
[1748837004924,0.7972,2498.7,2498.3,3.16372939]
[1748837006519,3.19844933,2498.7,2498.2,2.40170884]
[1748837006896,3.19844933,2498.7,2497.8,0.8078]
[1748837006897,2.40177964,2498.2,2497.6,4.75]
[1748837007213,2.40177964,2498.2,2497.7,2.81794486]
[1748837007214,0.8066,2498.2,2497.7,2.81794486]
[1748837007402,0.8066,2498.6,2498.2,2.40165413]
[1748837007804,0.8066,2498.6,2498.1,5.21970397]
[1748837008420,0.8066,2498.6,2498.1,5.98192278]
[1748837009009,0.8066,2498.6,2498.3,2.40159264]
[1748837009216,0.8066,2498.6,2498.2,2.40169347]
[1748837010828,0.8066,2498.6,2498.3,2.4016074]
[1748837011014,0.8066,2498.6,2498.2,2.40169347]
[1748837011209,1.13294403,2499.0,2498.5,2.40134549]
[1748837011413,0.7506,2499.0,2498.5,2.40137781]
[1748837011601,0.7506,2499.0,2498.4,2.40153698]
[1748837011795,0.7506,2499.0,2498.6,2.40127954]
[1748837011998,0.7506,2499.0,2498.7,2.40124862]
[1748837012506,0.7506,2499.0,2498.7,5.21919348]
[1748837012706,0.7506,2499.0,2498.8,2.40115255]
[1748837013015,0.7506,2499.0,2498.8,2.40111585]
[1748837013217,0.7796,2499.2,2498.8,2.40115255]
[1748837013797,0.7796,2499.2,2498.7,5.74108097]
[1748837013991,0.7796,2499.2,2498.8,2.40114902]
[1748837014491,0.7796,2499.2,2498.9,2.40105352]
[1748837014696,0.7796,2499.2,2499.0,2.40095421]
[1748837014904,0.7796,2499.2,2498.8,2.40112526]
[1748837015097,0.7796,2499.2,2499.0,2.40090977]
[1748837015831,0.7772,2499.4,2499.0,2.40090977]
[1748837016031,0.7772,2499.4,2498.9,3.05800775]
[1748837016231,0.7772,2499.4,2498.9,3.05801309]
[1748837016799,0.7772,2499.4,2498.9,0.65697895]
[1748837017004,0.7772,2499.4,2498.9,3.05794582]
[1748837017542,0.7772,2499.4,2499.0,2.40094285]
[1748837017707,0.7772,2499.4,2499.0,2.94683885]
[1748837017907,0.7772,2499.4,2499.1,2.40083741]
[1748837018332,0.7772,2499.4,2499.0,0.54590753]
[1748837019042,0.7772,2499.4,2499.1,2.40083404]
[1748837019809,0.7772,2499.4,2499.0,2.94681961]
[1748837020505,0.7772,2499.4,2499.0,0.54590753]
[1748837020733,0.7772,2499.4,2499.0,2.40093851]
[1748837021142,0.7772,2499.4,2498.7,0.52191935]
[1748837021321,0.7772,2499.3,2498.8,2.40108777]
[1748837021517,3.17789494,2499.3,2498.7,2.92312635]
[1748837021911,0.7772,2499.3,2498.8,2.40114881]
[1748837022106,0.7772,2499.3,2498.8,3.51518895]
[1748837023261,0.7772,2499.3,2498.9,2.40105266]
[1748837025454,0.7772,2499.3,2499.0,2.40095665]
[1748837026666,0.7772,2499.3,2498.9,2.40101172]
[1748837027334,0.7772,2499.3,2498.8,1.11404014]
[1748837027736,3.18634486,2499.2,2498.6,2.40132168]
[1748837028663,3.18634486,2499.2,2498.7,2.40122597]
[1748837029479,0.7855,2499.2,2498.7,2.40122597]
[1748837029659,0.7855,2499.2,2498.8,2.40111983]
[1748837029963,0.7855,2499.2,2498.9,2.40104859]
[1748837031627,0.7855,2499.2,2498.8,0.48023633]
[1748837031838,0.7855,2499.2,2498.8,2.40114573]
[1748837033749,0.7855,2499.2,2498.9,2.4010512]
[1748837034261,0.7855,2499.2,2498.8,2.40110552]
[1748837034563,0.7855,2499.2,2498.9,2.40105246]
[1748837035655,0.7855,2499.2,2499.0,2.40090589]
[1748837036379,0.7855,2499.2,2498.8,2.40111877]
[1748837036533,0.7855,2499.2,2498.9,2.40100546]
[1748837036731,0.7855,2499.2,2499.0,2.40086718]
[1748837036931,1.20287162,2499.4,2499.0,2.40086718]
[1748837037239,0.8202,2499.4,2499.0,2.40086718]
[1748837037634,0.8202,2499.4,2498.9,2.40100546]
[1748837037836,0.8202,2499.4,2499.0,0.56991967]
[1748837038171,0.8202,2499.4,2499.0,2.97086168]
[1748837038347,0.38302111,2499.3,2499.0,2.97086168]
[1748837038545,0.8202,2499.4,2499.3,2.40067218]
[1748837038868,1.20318803,2499.7,2499.4,2.40056147]
[1748837039180,1.20318803,2499.7,2499.2,2.40069605]
[1748837039181,0.38298803,2499.6,2499.2,2.40069605]
[1748837039391,0.8202,2499.5,2499.0,2.97083551]
[1748837039538,0.8202,2499.5,2499.1,0.37469355]
[1748837041058,0.8202,2499.5,2499.1,2.77553482]
[1748837041937,2.40057613,2499.4,2499.1,0.37469355]
[1748837042166,0.7941,2499.3,2498.8,2.4010841]
[1748837042365,0.7941,2499.3,2498.6,6.00015748]
[1748837042537,3.19478545,2499.3,2498.7,2.40119177]
[1748837042978,3.19338495,2499.3,2498.7,2.40119177]
[1748837043163,3.19338495,2499.3,2498.8,0.76204493]
[1748837043362,0.38346535,2499.2,2498.8,0.76204493]
[1748837043680,3.19338495,2499.3,2498.8,0.76204493]
[1748837043879,0.38347274,2499.2,2498.8,3.16318656]
[1748837044175,3.19338495,2499.3,2498.8,3.16318656]
[1748837044538,2.400778,2499.2,2498.5,2.40142015]
[1748837044733,2.40071797,2499.3,2498.7,2.40123294]
[1748837044980,2.7843046,2499.2,2498.7,2.40123294]
[1748837045142,0.3835088,2499.1,2498.6,2.40128599]
[1748837045482,2.40080659,2499.2,2498.7,2.40124661]
[1748837045635,2.40071953,2499.3,2498.7,2.40124661]
[1748837045839,2.78427756,2499.2,2498.7,2.40123273]
[1748837046090,0.8265,2499.0,2498.7,2.40123273]
[1748837046239,0.8265,2499.0,2498.7,2.88149802]
[1748837046870,0.8265,2499.0,2498.8,2.40111554]
[1748837047074,0.8265,2499.0,2498.7,0.48026529]
[1748837047265,0.8265,2499.0,2498.7,2.88145075]
[1748837047467,0.8265,2499.0,2498.8,0.28814507]
[1748837047673,0.8265,2499.0,2498.8,2.6892875]
[1748837048482,0.8265,2499.0,2498.8,0.28814507]
[1748837050282,3.22750942,2499.0,2498.4,8.0]
[1748837050484,0.8265,2499.0,2498.5,2.40143144]
[1748837051187,0.8265,2499.0,2498.6,2.40134367]
[1748837051791,0.8265,2499.0,2498.5,2.40142058]
[1748837051980,0.8265,2499.0,2498.5,3.9635105]
[1748837052795,0.8265,2499.0,2498.6,2.40134082]
[1748837054062,0.8265,2499.0,2498.6,2.40132577]
[1748837056293,3.22746961,2499.0,2498.5,1.56208992]
[1748837056592,0.8265,2499.0,2498.5,3.96346746]
[1748837056960,0.8265,2499.0,2498.6,3.83782434]
[1748837058494,0.8265,2499.0,2498.7,2.40123387]
[1748837058693,4.092,2499.2,2498.8,2.40114873]
[1748837058859,0.38339647,2499.1,2498.8,2.40114873]
[1748837059059,4.092,2499.2,2498.8,2.40114873]
[1748837059297,0.38339399,2499.1,2498.8,2.40114873]
[1748837059481,4.092,2499.2,2498.8,2.40114873]
[1748837059682,0.38339258,2499.1,2498.8,2.40114873]
[1748837059909,4.092,2499.2,2498.7,2.40121241]
[1748837060083,0.38339825,2499.1,2498.7,2.40121241]
[1748837060399,4.092,2499.2,2498.7,3.10155042]
[1748837060601,0.38339328,2499.1,2498.8,2.40114695]
[1748837060801,0.7891,2499.3,2498.8,2.40114695]
[1748837060980,0.38338839,2499.2,2498.8,2.40114695]
[1748837061272,4.8811,2499.3,2498.8,2.40114695]
[1748837061477,0.38337379,2499.2,2498.8,0.7703632]
[1748837061791,0.8304,2499.0,2498.7,2.4012002]
[1748837062284,0.8304,2499.0,2498.6,1.43649969]
[1748837062494,2.40105646,2498.9,2498.3,10.40157878]
[1748837062666,0.8304,2498.8,2498.3,10.40157878]
[1748837063004,2.7847509,2498.7,2498.2,2.40167694]
[1748837063202,2.40131669,2498.7,2498.2,2.40167694]
[1748837063700,0.8304,2498.6,2498.2,2.40167694]
[1748837064001,0.8304,2498.6,2497.9,2.81794486]
[1748837064002,0.8304,2498.6,2498.3,0.24016769]
[1748837064172,0.8304,2498.6,2498.1,2.40177698]
[1748837064372,3.23175861,2498.6,2497.9,5.21989892]
[1748837064705,3.23175861,2498.6,2498.1,2.40180545]
[1748837065006,0.8304,2498.6,2498.0,2.40189162]
[1748837065169,3.23177597,2498.6,2498.1,2.40182084]
[1748837065370,3.23179144,2498.6,2498.1,1.2803828]
[1748837065806,3.23179144,2498.6,2498.1,3.68219564]
[1748837066130,0.8304,2498.6,2498.2,2.40171998]
[1748837066415,0.7968,2498.8,2498.4,2.40153698]
[1748837066772,0.7968,2498.8,2498.5,2.40139344]
[1748837067482,0.7968,2498.8,2498.4,2.40150825]
[1748837067686,0.7968,2498.8,2498.4,2.96202944]
[1748837069617,0.7968,2498.8,2498.5,2.4014377]
[1748837070411,0.7968,2498.8,2498.4,2.96201286]
[1748837072881,0.7968,2498.8,2498.5,2.40140968]
[1748837073982,0.7968,2498.8,2498.4,2.96202575]
[1748837074182,0.7968,2498.8,2498.5,0.53635988]
[1748837075484,2.40143732,2498.6,2498.2,0.802]
[1748837075682,0.7968,2498.8,2498.2,0.802]
[1748837075887,0.7968,2498.8,2498.3,2.40156063]
[1748837076619,3.19795936,2498.8,2498.3,2.40156063]
[1748837076824,3.19795936,2498.8,2498.3,3.24387537]
[1748837077287,0.7968,2498.8,2498.4,2.40151217]
[1748837078005,3.19795268,2498.8,2498.3,3.24392703]
[1748837078336,0.7968,2498.8,2498.3,3.24392703]
[1748837080107,0.7968,2498.8,2498.3,0.84231474]
[1748837080340,2.4012624,2498.7,2498.2,2.40168805]
[1748837080542,2.40168128,2498.3,2497.8,7.9650639]
[1748837080698,0.7796,2498.4,2497.9,2.4019987]
[1748837081209,3.18118972,2498.4,2497.8,2.40207144]
[1748837081403,3.18118972,2498.4,2497.9,1.28042516]
[1748837082051,2.40197404,2498.0,2497.6,1.064]
[1748837082201,0.7793,2497.9,2497.3,2.40253217]
[1748837082409,3.18136871,2497.9,2497.3,2.40253217]
[1748837082604,1.35,2497.9,2497.2,2.40268134]
[1748837082842,2.40235018,2497.6,2497.1,0.01]
[1748837083043,0.8,2497.5,2497.1,2.41278472]
[1748837083257,0.8,2497.5,2497.1,3.28255368]
[1748837083558,0.8,2497.5,2497.1,0.87976896]
[1748837083707,0.8,2497.5,2497.1,0.01]
[1748837083904,3.20243108,2497.5,2497.1,0.01]
[1748837085110,4.892,2497.5,2497.1,0.01]
[1748837085311,2.40253069,2497.4,2497.1,0.01]
[1748837085510,4.892,2497.5,2497.1,0.01]
[1748837085710,0.7746,2497.2,2497.1,0.01]
[1748837089850,0.7761,2497.6,2497.1,0.01]
[1748837090051,4.8681,2497.6,2497.2,2.40259867]
[1748837090253,0.7826,2498.0,2497.5,2.40232285]
[1748837090439,0.7826,2498.0,2497.5,0.04003808]
[1748837090638,3.18453235,2498.0,2497.4,2.40245197]
[1748837090819,3.18453235,2498.0,2497.5,2.40240072]
[1748837091141,3.18453235,2498.0,2497.4,3.1647634]
[1748837091333,0.7826,2498.0,2497.4,0.7622967]
[1748837091540,0.7826,2498.0,2497.2,2.40267803]
[1748837091541,2.40207984,2497.9,2497.2,2.40267803]
[1748837091847,3.18454955,2498.0,2497.4,2.40249492]
[1748837092650,3.18454955,2498.0,2497.5,2.40239891]
[1748837092958,0.7826,2498.0,2497.6,2.40224423]
[1748837093564,0.7826,2498.0,2497.4,0.7755]
[1748837093719,3.18457279,2498.0,2497.5,0.35934449]
[1748837093920,0.7826,2498.0,2497.5,0.35934449]
[1748837094152,3.18456168,2498.0,2497.5,0.35934449]
[1748837094516,0.7826,2498.0,2497.5,0.35934449]
[1748837094719,0.7826,2498.0,2497.5,2.76171045]
[1748837095443,3.18452413,2498.0,2497.5,0.35934449]
[1748837095648,3.18452413,2498.0,2497.4,2.40244816]
[1748837095814,3.18452413,2498.0,2497.5,2.40237426]
[1748837096325,0.7826,2498.0,2497.5,2.40237426]
[1748837097346,3.18457816,2498.0,2497.5,2.40239349]
[1748837098738,0.7826,2498.0,2497.6,2.40230328]
[1748837099550,0.7826,2498.0,2497.7,2.40213344]
[1748837100168,0.7826,2498.0,2497.6,2.40226201]
[1748837101767,3.18457167,2498.0,2497.5,2.40235454]
[1748837102065,0.7826,2498.0,2497.5,2.40235454]
[1748837102879,0.7826,2498.0,2497.6,2.40229315]
[1748837103473,0.7826,2498.0,2497.5,2.40239146]
[1748837103474,0.7826,2498.0,2497.7,2.40220313]
[1748837104374,0.7826,2498.0,2497.9,2.40201769]
[1748837104584,0.7636,2498.3,2498.1,2.40175236]
[1748837104732,0.7636,2498.3,2498.0,2.40190334]
[1748837106083,0.7636,2498.3,2498.1,2.40181988]
[1748837106964,0.7636,2498.3,2498.0,2.40187863]
[1748837107140,0.7636,2498.3,2498.0,2.88226802]
[1748837107742,0.7636,2498.3,2498.0,0.48038939]
[1748837108290,0.7636,2498.3,2498.0,2.88230817]
[1748837108988,0.7636,2498.3,2498.0,0.48038939]
[1748837109163,0.7636,2498.3,2498.0,2.88229234]
[1748837109739,0.7636,2498.3,2498.0,0.48038939]
[1748837110893,0.7636,2498.3,2498.0,2.8823044]
[1748837111067,0.8025,2498.6,2498.1,2.68999618]
[1748837111285,0.38279619,2498.5,2498.1,2.68999618]
[1748837111449,7.29484916,2498.6,2498.1,2.68999618]
[1748837111648,0.3827758,2498.5,2498.1,2.68999618]
[1748837111863,7.29484916,2498.6,2498.1,2.68999618]
[1748837112184,0.38277521,2498.5,2498.1,2.68999618]
[1748837112382,7.29484916,2498.6,2498.1,2.68999618]
[1748837112583,0.3827391,2498.5,2498.1,2.68999618]
[1748837112885,7.29484916,2498.6,2498.1,2.68999618]
[1748837113086,7.29484916,2498.6,2498.1,2.40175949]
[1748837114190,2.40147804,2498.5,2498.0,2.88227218]
[1748837114391,7.29489377,2498.6,2498.0,2.88224485]
[1748837114683,0.38266746,2498.5,2498.0,2.88224485]
[1748837114859,2.78412145,2498.5,2498.0,2.88224485]
[1748837115059,2.78412145,2498.5,2498.0,0.48038939]
[1748837115060,2.78412165,2498.5,2498.0,0.48038939]
[1748837115388,2.40160233,2498.4,2497.9,2.40200896]
[1748837119474,6.49248828,2498.5,2497.9,2.40200896]
[1748837119679,0.38331039,2498.4,2497.9,2.40200896]
[1748837119852,6.49248828,2498.5,2497.9,2.40200896]
[1748837120054,2.7848568,2498.4,2497.9,3.23933487]
[1748837120348,2.40154614,2498.4,2497.9,3.23933487]
[1748837121150,0.7569,2498.2,2497.5,4.75]
[1748837121356,2.40188112,2498.1,2497.6,2.40229289]
[1748837121758,0.7569,2498.2,2497.5,8.0]
[1748837121759,3.15867869,2498.2,2497.7,2.4021996]
[1748837122865,3.15867869,2498.2,2497.6,2.40226901]
[1748837123066,2.78540274,2498.1,2497.6,0.56166646]
[1748837123292,2.40188854,2498.1,2497.6,0.56166646]
[1748837125208,2.40193817,2498.0,2497.5,10.40235399]
[1748837125365,2.40204118,2497.9,2497.5,8.0]
[1748837125565,3.22274118,2497.9,2497.4,0.812]
[1748837125807,3.22274118,2497.9,2497.4,3.21449744]
[1748837126103,3.22274118,2497.9,2497.4,0.812]
[1748837126511,0.8207,2497.9,2497.2,0.7757]
[1748837126663,2.78578464,2497.8,2497.3,0.55357]
[1748837126865,0.7744,2497.6,2497.1,10.41275512]
[1748837128050,3.17670655,2497.6,2497.1,10.41275512]
[1748837128258,0.7744,2497.6,2497.2,2.40268104]
[1748837129510,3.17671582,2497.6,2497.1,10.4127465]
[1748837130842,3.17674009,2497.6,2497.1,0.01]
[1748837131042,7.2667491,2497.6,2497.1,2.41277755]
[1748837131341,4.8644,2497.6,2497.1,2.89434707]
[1748837132817,7.26671277,2497.6,2497.1,2.89434707]
[1748837133250,7.26671277,2497.6,2497.1,0.49156952]
[1748837133550,7.26671277,2497.6,2497.1,0.01]
[1748837133551,2.40250865,2497.4,2497.1,0.01]
[1748837133713,2.40244101,2497.5,2497.1,0.01]
[1748837135545,7.26675838,2497.6,2497.1,2.41277827]
[1748837135749,7.26675838,2497.6,2497.1,0.01]
[1748837136525,4.8644,2497.6,2497.1,2.41272522]
[1748837136860,7.26670684,2497.6,2497.1,0.01]
[1748837137348,3.17670684,2497.6,2497.2,0.8245]
[1748837137650,2.78503543,2497.7,2497.2,0.8245]
[1748837137823,2.40232185,2497.6,2497.2,0.8245]
[1748837138028,2.40239392,2497.6,2497.1,0.01]
[1748837139865,2.40240659,2497.5,2497.1,0.01]
[1748837140017,2.40231918,2497.6,2497.1,0.01]
[1748837140353,2.40245073,2497.5,2497.1,0.01]
[1748837141553,2.40267302,2497.3,2497.1,0.01]
[1748837141961,2.40261703,2497.3,2497.1,0.01]
[1748837142156,3.20834883,2497.4,2497.1,0.01]
[1748837146956,0.8058,2497.4,2497.1,0.01]
[1748837147321,0.38276773,2497.6,2497.1,0.01]
[1748837147518,2.40235095,2497.6,2497.2,0.8163]
[1748837148063,2.40241651,2497.5,2497.2,0.8163]
[1748837148360,2.40234806,2497.6,2497.2,0.8163]
[1748837148654,2.40240803,2497.5,2497.2,0.8163]
[1748837149027,2.40256101,2497.4,2497.2,0.8163]
[1748837149226,2.40244536,2497.5,2497.2,0.8163]
[1748837150558,0.47870774,2498.6,2498.0,0.8283]
[1748837150764,2.78440957,2498.5,2498.0,0.8283]
[1748837150940,2.78451271,2498.4,2498.0,0.8283]
[1748837151266,0.55,2498.5,2497.5,2.81794486]
[1748837151478,0.8101,2498.3,2497.6,0.8283]
[1748837151642,2.40180378,2498.2,2497.6,3.23055247]
[1748837151846,2.40183476,2498.1,2497.6,3.23055247]
[1748837152557,2.40173801,2498.2,2497.6,3.23055247]
[1748837154766,7.30175825,2498.3,2497.7,2.40220811]
[1748837155979,3.21175825,2498.3,2497.7,2.40220811]
[1748837156138,7.30075825,2498.3,2497.7,2.40220811]
[1748837156339,7.30075825,2498.3,2497.7,2.84578913]
[1748837156539,1.54079195,2498.7,2497.8,0.7527]
[1748837156743,2.40145302,2498.5,2498.0,2.40186424]
[1748837157279,2.40145302,2498.5,2497.9,2.81794486]
[1748837157476,2.40145302,2498.5,2498.0,0.59727336]
[1748837158444,2.40145302,2498.5,2498.1,0.8012]
[1748837159084,2.40154332,2498.4,2498.1,0.8012]
[1748837159581,0.38264848,2498.5,2498.1,0.8012]
[1748837159776,2.40157407,2498.4,2498.1,0.8012]
[1748837159964,2.40163393,2498.3,2498.1,0.8012]
[1748837160172,0.55,2498.4,2497.8,0.7638]
[1748837160479,2.40191156,2498.1,2497.8,0.7638]
[1748837161046,3.63924486,2498.4,2497.6,0.7638]
[1748837161247,2.40198117,2498.0,2497.6,0.7638]
[1748837161443,0.7677,2498.0,2497.3,0.7929]
[1748837161660,2.402169,2497.8,2497.4,0.63364376]
[1748837163057,4.089,2498.1,2497.4,5.85407766]
[1748837163058,2.40203495,2497.9,2497.4,5.85407766]
[1748837163353,2.4019569,2498.0,2497.5,0.7929]
[1748837164992,2.40202016,2497.9,2497.5,0.7929]
[1748837165158,2.40211768,2497.8,2497.5,0.7929]
[1748837166891,2.40230311,2497.7,2497.5,0.7929]
[1748837167392,2.40215445,2497.8,2497.5,0.7929]
[1748837170797,6.49097629,2498.0,2497.5,0.7929]
[1748837171099,2.40211728,2497.8,2497.5,0.7929]
[1748837174803,2.40206195,2497.9,2497.5,0.7929]
[1748837175300,3.16945775,2498.2,2497.5,1.15247805]
[1748837175501,2.4015844,2498.4,2497.9,2.40199191]
[1748837175700,0.38294403,2498.3,2498.0,0.7741]
[1748837175871,2.4015844,2498.4,2498.0,0.7741]
[1748837176471,2.78448064,2498.5,2498.0,0.7741]
[1748837176670,2.40148637,2498.5,2498.0,0.7741]
[1748837177127,2.40155529,2498.4,2498.0,0.7741]
[1748837178775,2.40164483,2498.3,2498.0,0.7741]
[1748837178972,4.088,2498.6,2498.0,0.7741]
[1748837179298,2.4016287,2498.4,2498.0,0.7741]
[1748837179499,2.40144971,2498.5,2498.0,0.7741]
[1748837179700,4.088,2498.6,2498.0,0.7741]
[1748837179906,2.40189955,2498.1,2497.7,0.8066]
[1748837180103,4.16614486,2498.4,2497.7,0.8066]
[1748837180298,2.40192153,2498.0,2497.7,0.8066]
[1748837180519,2.40185798,2498.1,2497.7,0.8066]
[1748837181012,2.40202188,2497.9,2497.7,0.8066]
[1748837181215,2.40196209,2498.0,2497.7,0.8066]
[1748837181711,2.40185798,2498.1,2497.7,0.8066]
[1748837181712,2.40202435,2497.9,2497.7,0.8066]
[1748837181916,2.40185798,2498.1,2497.7,0.8066]
[1748837182077,2.40203953,2497.9,2497.7,0.8066]
[1748837182276,2.40194979,2498.0,2497.7,0.8066]
[1748837182985,2.40204463,2497.9,2497.7,0.8066]
[1748837183916,2.40199508,2498.0,2497.7,0.8066]
[1748837184135,2.40194139,2498.0,2497.7,0.8066]
[1748837185819,2.402086,2497.9,2497.7,0.8066]
[1748837186611,2.40211386,2497.8,2497.7,0.8066]
[1748837186812,2.40204905,2497.9,2497.4,0.7746]
[1748837188226,4.8625,2498.1,2497.4,0.7746]
[1748837188417,2.40207416,2497.9,2497.4,0.7746]
[1748837189497,2.40207416,2497.9,2497.4,3.1770915]
[1748837194435,2.40197005,2498.0,2497.4,3.1770915]
[1748837194607,2.40197005,2498.0,2497.4,4.56735058]
[1748837194938,2.40197005,2498.0,2497.5,2.40239528]